[Event "Early-Titled-Tuesday-Blitz-September-12-2023"]
[Site "Chess.com"]
[Date "2023.09.12"]
[Round "7"]
[White "The_Princess_Moon"]
[Black "Ready4abattle"]
[Result "1-0"]
[WhiteElo "2265"]
[BlackElo "2306"]
[TimeControl "180+1"]
[EndTime "9:17:02 PDT"]
[Termination "The_Princess_Moon won by checkmate"]

1. e4 {[%clk 0:03:00.9]} 1... c5 {[%clk 0:03:00.2]} 2. Nf3 {[%clk 0:03:00.5]}
2... Nc6 {[%clk 0:03:00.5]} 3. Bb5 {[%clk 0:03:00.1]} 3... e6 {[%clk 0:03:00.9]}
4. Bxc6 {[%clk 0:03:00.6]} 4... bxc6 {[%clk 0:03:01.8]} 5. O-O {[%clk
0:03:00.9]} 5... Ne7 {[%clk 0:03:01.4]} 6. Re1 {[%clk 0:03:01.8]} 6... Ng6
{[%clk 0:03:00.6]} 7. c3 {[%clk 0:03:02.1]} 7... d6 {[%clk 0:02:58.3]} 8. d4
{[%clk 0:03:02.6]} 8... cxd4 {[%clk 0:02:56.8]} 9. cxd4 {[%clk 0:03:03.5]} 9...
Be7 {[%clk 0:02:56.9]} 10. Qc2 {[%clk 0:03:02.9]} 10... Qd7 {[%clk 0:02:47]} 11.
Nc3 {[%clk 0:03:00.6]} 11... O-O {[%clk 0:02:46.8]} 12. Bg5 {[%clk 0:02:57.9]}
12... Rb8 {[%clk 0:02:42.8]} 13. Bxe7 {[%clk 0:02:55.7]} 13... Qxe7 {[%clk
0:02:37.5]} 14. e5 {[%clk 0:02:55.2]} 14... dxe5 {[%clk 0:02:26.9]} 15. dxe5
{[%clk 0:02:52.3]} 15... Nf4 {[%clk 0:02:20.9]} 16. Ne4 {[%clk 0:02:48.4]} 16...
Nd5 {[%clk 0:02:17.9]} 17. Nfg5 {[%clk 0:02:35.1]} 17... g6 {[%clk 0:02:16.3]}
18. Rad1 {[%clk 0:02:28.5]} 18... h6 {[%clk 0:01:58.1]} 19. Nf3 {[%clk 0:02:23]}
19... Kg7 {[%clk 0:01:56.1]} 20. b3 {[%clk 0:02:17.6]} 20... Rb6 {[%clk
0:01:55.7]} 21. Nd4 {[%clk 0:02:08.8]} 21... Bb7 {[%clk 0:01:52.7]} 22. Nc5
{[%clk 0:01:51.7]} 22... Rd8 {[%clk 0:01:49.2]} 23. a3 {[%clk 0:01:29.7]} 23...
Qh4 {[%clk 0:01:39]} 24. Re4 {[%clk 0:01:25]} 24... Qe7 {[%clk 0:01:36.3]} 25.
Rde1 {[%clk 0:01:21.6]} 25... Kh7 {[%clk 0:01:29.2]} 26. h4 {[%clk 0:01:13]}
26... Ba8 {[%clk 0:01:21.1]} 27. h5 {[%clk 0:01:12.4]} 27... Rf8 {[%clk
0:01:19.5]} 28. Rg4 {[%clk 0:01:07.2]} 28... Rg8 {[%clk 0:01:19]} 29. hxg6+
{[%clk 0:01:00.8]} 29... fxg6 {[%clk 0:01:11.5]} 30. Ndxe6 {[%clk 0:00:55.4]}
30... Qf7 {[%clk 0:00:57.8]} 31. Rh4 {[%clk 0:00:50.7]} 31... Qe7 {[%clk
0:00:47.2]} 32. Rh3 {[%clk 0:00:35.7]} 32... Bb7 {[%clk 0:00:42.3]} 33. Qd3
{[%clk 0:00:32.4]} 33... Bc8 {[%clk 0:00:41.8]} 34. Rxh6+ {[%clk 0:00:30]} 34...
Kxh6 {[%clk 0:00:39.1]} 35. Qh3+ {[%clk 0:00:30.5]} 35... Qh4 {[%clk 0:00:39.8]}
36. Qxh4# {[%clk 0:00:30.4]} 1-0

[Event "Early-Titled-Tuesday-Blitz-September-12-2023"]
[Site "Chess.com"]
[Date "2023.09.12"]
[Round "7"]
[White "GMBenjaminBok"]
[Black "DenLaz"]
[Result "1-0"]
[WhiteElo "3007"]
[BlackElo "3071"]
[TimeControl "180+1"]
[EndTime "9:17:03 PDT"]
[Termination "GMBenjaminBok won by resignation"]

1. c4 {[%clk 0:03:00.9]} 1... Nf6 {[%clk 0:02:59]} 2. Nf3 {[%clk 0:03:01.1]}
2... e6 {[%clk 0:02:58.8]} 3. b3 {[%clk 0:02:59]} 3... d5 {[%clk 0:02:59.2]} 4.
Bb2 {[%clk 0:02:59]} 4... Be7 {[%clk 0:02:59.6]} 5. e3 {[%clk 0:02:56.4]} 5...
O-O {[%clk 0:03:00]} 6. Nc3 {[%clk 0:02:56.2]} 6... c5 {[%clk 0:02:59.3]} 7.
cxd5 {[%clk 0:02:56.3]} 7... Nxd5 {[%clk 0:03:00]} 8. Qc2 {[%clk 0:02:53.5]}
8... b6 {[%clk 0:02:54.2]} 9. h4 {[%clk 0:02:51.4]} 9... Ba6 {[%clk 0:02:39.8]}
10. Ng5 {[%clk 0:02:43.8]} 10... g6 {[%clk 0:01:54.4]} 11. Nxh7 {[%clk
0:02:40.9]} 11... Nb4 {[%clk 0:01:46.4]} 12. Qe4 {[%clk 0:02:36.1]} 12... Bxf1
{[%clk 0:01:14.5]} 13. Kxf1 {[%clk 0:02:00.5]} 13... Kxh7 {[%clk 0:01:02.7]} 14.
Qxa8 {[%clk 0:01:44.5]} 14... Qxd2 {[%clk 0:00:42.8]} 15. Rb1 {[%clk 0:00:49.6]}
15... N8c6 {[%clk 0:00:36.8]} 16. Qb7 {[%clk 0:00:46.3]} 16... Bf6 {[%clk
0:00:17.2]} 17. Kg1 {[%clk 0:00:15.8]} 17... Qxb2 {[%clk 0:00:15.8]} 18. Rxb2
{[%clk 0:00:14.9]} 1-0

[Event "Early-Titled-Tuesday-Blitz-September-12-2023"]
[Site "Chess.com"]
[Date "2023.09.12"]
[Round "7"]
[White "The_Machine04"]
[Black "FGHSMN"]
[Result "0-1"]
[WhiteElo "2671"]
[BlackElo "2905"]
[TimeControl "180+1"]
[EndTime "9:17:04 PDT"]
[Termination "FGHSMN won by checkmate"]

1. d4 {[%clk 0:03:00.5]} 1... Nf6 {[%clk 0:02:59.5]} 2. Nf3 {[%clk 0:03:00.3]}
2... e6 {[%clk 0:02:59.6]} 3. Nbd2 {[%clk 0:02:53.4]} 3... d5 {[%clk 0:02:57.1]}
4. e3 {[%clk 0:02:53.5]} 4... c5 {[%clk 0:02:55.9]} 5. c3 {[%clk 0:02:53.5]}
5... Nc6 {[%clk 0:02:55.5]} 6. Bd3 {[%clk 0:02:51.4]} 6... Be7 {[%clk
0:02:52.8]} 7. O-O {[%clk 0:02:51.6]} 7... O-O {[%clk 0:02:51.9]} 8. dxc5 {[%clk
0:02:52.1]} 8... Bxc5 {[%clk 0:02:51.4]} 9. b4 {[%clk 0:02:52.6]} 9... Bd6
{[%clk 0:02:52]} 10. Bb2 {[%clk 0:02:52.9]} 10... a6 {[%clk 0:02:49]} 11. a3
{[%clk 0:02:52.8]} 11... b5 {[%clk 0:02:37.2]} 12. a4 {[%clk 0:02:52.9]} 12...
Rb8 {[%clk 0:02:34.8]} 13. axb5 {[%clk 0:02:52.9]} 13... axb5 {[%clk 0:02:35.7]}
14. Qe2 {[%clk 0:02:53.4]} 14... Qb6 {[%clk 0:02:30.6]} 15. e4 {[%clk
0:02:49.5]} 15... Nh5 {[%clk 0:02:16.9]} 16. g3 {[%clk 0:02:47.5]} 16... g6
{[%clk 0:02:11.8]} 17. e5 {[%clk 0:02:42.3]} 17... Be7 {[%clk 0:02:10.3]} 18.
Nb3 {[%clk 0:02:42.2]} 18... f6 {[%clk 0:01:31.1]} 19. exf6 {[%clk 0:02:35]}
19... Bxf6 {[%clk 0:01:32]} 20. Nbd4 {[%clk 0:02:01.6]} 20... Ng7 {[%clk
0:01:31.2]} 21. Nxc6 {[%clk 0:02:00.1]} 21... Qxc6 {[%clk 0:01:32.1]} 22. Nd4
{[%clk 0:02:00.8]} 22... Qb6 {[%clk 0:01:30.9]} 23. Nxb5 {[%clk 0:01:58]} 23...
e5 {[%clk 0:01:30]} 24. Ra5 {[%clk 0:01:53.8]} 24... Bh3 {[%clk 0:01:27]} 25.
Rd1 {[%clk 0:01:51.8]} 25... Bg5 {[%clk 0:01:20.9]} 26. Bc1 {[%clk 0:01:43.2]}
26... Bxc1 {[%clk 0:00:52.3]} 27. Rxc1 {[%clk 0:01:44.1]} 27... Ne6 {[%clk
0:00:46.7]} 28. Qe3 {[%clk 0:01:19.1]} 28... Ng5 {[%clk 0:00:23.5]} 29. Qxb6
{[%clk 0:01:05.4]} 29... Rxb6 {[%clk 0:00:24.4]} 30. Kh1 {[%clk 0:01:05.8]}
30... Rxf2 {[%clk 0:00:23.2]} 31. Rc2 {[%clk 0:00:55.8]} 31... Rxc2 {[%clk
0:00:21.4]} 32. Bxc2 {[%clk 0:00:56.7]} 32... Rf6 {[%clk 0:00:21.9]} 33. Ra1
{[%clk 0:00:49.4]} 33... Rf2 {[%clk 0:00:21.8]} 34. Bb3 {[%clk 0:00:49.9]} 34...
Bg2+ {[%clk 0:00:22]} 35. Kg1 {[%clk 0:00:49.8]} 35... Nh3# {[%clk 0:00:22.9]}
0-1

[Event "Early-Titled-Tuesday-Blitz-September-12-2023"]
[Site "Chess.com"]
[Date "2023.09.12"]
[Round "7"]
[White "AliKa2810"]
[Black "Juicy_Fork"]
[Result "0-1"]
[WhiteElo "2559"]
[BlackElo "2475"]
[TimeControl "180+1"]
[EndTime "9:17:06 PDT"]
[Termination "Juicy_Fork won by resignation"]

1. d4 {[%clk 0:02:58.5]} 1... Nf6 {[%clk 0:03:00]} 2. c4 {[%clk 0:02:58.7]} 2...
g6 {[%clk 0:03:00.6]} 3. Nc3 {[%clk 0:02:58.3]} 3... Bg7 {[%clk 0:03:00.6]} 4.
e4 {[%clk 0:02:58.8]} 4... d6 {[%clk 0:03:00.3]} 5. h3 {[%clk 0:02:59.5]} 5...
O-O {[%clk 0:03:00.6]} 6. Be3 {[%clk 0:03:00.1]} 6... e5 {[%clk 0:03:01.2]} 7.
d5 {[%clk 0:02:59.6]} 7... Na6 {[%clk 0:03:01.8]} 8. g4 {[%clk 0:03:00.1]} 8...
Nc5 {[%clk 0:03:02.2]} 9. f3 {[%clk 0:03:00.7]} 9... a5 {[%clk 0:03:01.2]} 10.
h4 {[%clk 0:03:00.7]} 10... c6 {[%clk 0:02:58]} 11. h5 {[%clk 0:03:01]} 11...
cxd5 {[%clk 0:02:57.1]} 12. cxd5 {[%clk 0:03:01.9]} 12... a4 {[%clk 0:02:55.1]}
13. Nge2 {[%clk 0:02:59.9]} 13... Qa5 {[%clk 0:02:51]} 14. Qd2 {[%clk
0:02:56.1]} 14... b5 {[%clk 0:02:49.8]} 15. Ng3 {[%clk 0:02:52.3]} 15... b4
{[%clk 0:02:49.5]} 16. Nd1 {[%clk 0:02:50.8]} 16... Ba6 {[%clk 0:02:47.3]} 17.
Nf2 {[%clk 0:02:49.2]} 17... Rfc8 {[%clk 0:02:37.9]} 18. h6 {[%clk 0:02:33.2]}
18... Bf8 {[%clk 0:02:23.3]} 19. g5 {[%clk 0:02:33.5]} 19... Nfd7 {[%clk
0:02:21.6]} 20. Ng4 {[%clk 0:02:33.9]} 20... Be7 {[%clk 0:02:19.5]} 21. Kf2
{[%clk 0:02:26.9]} 21... Bxf1 {[%clk 0:02:17.5]} 22. Raxf1 {[%clk 0:02:25.8]}
22... Qb5 {[%clk 0:02:07.5]} 23. Rd1 {[%clk 0:02:23.7]} 23... b3 {[%clk
0:02:06.3]} 24. a3 {[%clk 0:02:22.9]} 24... Nxe4+ {[%clk 0:02:02]} 25. Nxe4
{[%clk 0:02:10.7]} 25... Rc2 {[%clk 0:02:01.6]} 26. Kg3 {[%clk 0:02:09.8]} 26...
Rxd2 {[%clk 0:02:01.2]} 27. Rxd2 {[%clk 0:02:10.7]} 27... Rc8 {[%clk 0:02:00.6]}
28. Nc3 {[%clk 0:02:07.4]} 28... Qa5 {[%clk 0:01:54]} 29. Rhd1 {[%clk 0:02:07]}
29... f5 {[%clk 0:01:51.6]} 30. gxf6 {[%clk 0:02:06.1]} 30... Nxf6 {[%clk
0:01:51.5]} 31. Nxf6+ {[%clk 0:02:04.2]} 31... Bxf6 {[%clk 0:01:52.4]} 32. Ne4
{[%clk 0:02:04.6]} 32... Be7 {[%clk 0:01:52.8]} 33. Bg5 {[%clk 0:01:59.9]} 33...
Bxg5 {[%clk 0:01:50.3]} 34. Nxg5 {[%clk 0:02:00.8]} 34... Rc2 {[%clk 0:01:38.7]}
35. Ne4 {[%clk 0:02:00.9]} 35... Qb6 {[%clk 0:01:31.7]} 36. Nf6+ {[%clk
0:01:01]} 36... Kf7 {[%clk 0:01:19.7]} 37. Ne4 {[%clk 0:01:00.9]} 37... Ke7
{[%clk 0:01:12.5]} 38. Rd3 {[%clk 0:00:58.7]} 38... Rxb2 {[%clk 0:01:07.9]} 39.
Rc1 {[%clk 0:00:58.7]} 39... Rc2 {[%clk 0:01:07.7]} 40. Rxc2 {[%clk 0:00:54.5]}
40... bxc2 {[%clk 0:01:07.8]} 41. Rc3 {[%clk 0:00:55.4]} 41... Qb1 {[%clk
0:01:01.6]} 42. Rc7+ {[%clk 0:00:55.2]} 42... Kd8 {[%clk 0:00:58.4]} 43. Rxh7
{[%clk 0:00:55.7]} 43... c1=Q {[%clk 0:00:55]} 44. Rh8+ {[%clk 0:00:55.3]} 44...
Kc7 {[%clk 0:00:55.5]} 45. h7 {[%clk 0:00:50]} 45... Qg1+ {[%clk 0:00:53.8]} 46.
Kh4 {[%clk 0:00:50.1]} 46... Qh2+ {[%clk 0:00:50]} 47. Kg5 {[%clk 0:00:50.1]}
47... Qf4+ {[%clk 0:00:48.2]} 0-1

[Event "Early-Titled-Tuesday-Blitz-September-12-2023"]
[Site "Chess.com"]
[Date "2023.09.12"]
[Round "7"]
[White "Massakru"]
[Black "FMStan15"]
[Result "0-1"]
[WhiteElo "2383"]
[BlackElo "2094"]
[TimeControl "180+1"]
[EndTime "9:17:12 PDT"]
[Termination "FMStan15 won by resignation"]

1. e4 {[%clk 0:03:00.9]} 1... e6 {[%clk 0:02:56.5]} 2. d4 {[%clk 0:03:00.9]}
2... d5 {[%clk 0:02:55.4]} 3. Nc3 {[%clk 0:03:01.5]} 3... Bb4 {[%clk 0:02:54.8]}
4. Ne2 {[%clk 0:03:00.5]} 4... dxe4 {[%clk 0:02:53.4]} 5. a3 {[%clk 0:03:00.3]}
5... Be7 {[%clk 0:02:52.8]} 6. Nxe4 {[%clk 0:03:00.1]} 6... Nd7 {[%clk
0:02:53.2]} 7. N2g3 {[%clk 0:02:59.5]} 7... Ngf6 {[%clk 0:02:53.5]} 8. Bd3
{[%clk 0:02:59]} 8... O-O {[%clk 0:02:53.3]} 9. Qf3 {[%clk 0:02:52.4]} 9... Nxe4
{[%clk 0:02:52.5]} 10. Nxe4 {[%clk 0:02:51]} 10... Nf6 {[%clk 0:02:52.5]} 11. c3
{[%clk 0:02:48.3]} 11... Nxe4 {[%clk 0:02:48.2]} 12. Qxe4 {[%clk 0:02:48.1]}
12... g6 {[%clk 0:02:47.5]} 13. h4 {[%clk 0:02:45.4]} 13... Qd5 {[%clk
0:02:47.1]} 14. Qg4 {[%clk 0:02:37.4]} 14... e5 {[%clk 0:02:43.7]} 15. Qe2
{[%clk 0:02:34.4]} 15... Bf6 {[%clk 0:02:26.9]} 16. Be4 {[%clk 0:02:29.5]} 16...
Qd6 {[%clk 0:02:22.9]} 17. Bh6 {[%clk 0:02:26.4]} 17... Re8 {[%clk 0:02:22.1]}
18. dxe5 {[%clk 0:02:26.5]} 18... Qxe5 {[%clk 0:02:20.3]} 19. f3 {[%clk
0:02:11.7]} 19... Bf5 {[%clk 0:02:17.3]} 20. O-O-O {[%clk 0:02:02.2]} 20... Bxe4
{[%clk 0:02:12.9]} 21. fxe4 {[%clk 0:02:02.6]} 21... Qxe4 {[%clk 0:02:12.5]} 22.
Qxe4 {[%clk 0:02:02.7]} 22... Rxe4 {[%clk 0:02:12]} 23. Rd7 {[%clk 0:02:02.5]}
23... Re7 {[%clk 0:02:09.6]} 24. Rxe7 {[%clk 0:01:46.6]} 24... Bxe7 {[%clk
0:02:09]} 25. g3 {[%clk 0:01:44.9]} 25... Bd6 {[%clk 0:02:08.4]} 26. g4 {[%clk
0:01:43.1]} 26... Re8 {[%clk 0:02:06]} 27. Rd1 {[%clk 0:01:42.9]} 27... Re4
{[%clk 0:02:03.4]} 28. Rg1 {[%clk 0:01:39.9]} 28... Bf4+ {[%clk 0:01:55.9]} 29.
Bxf4 {[%clk 0:01:39.2]} 29... Rxf4 {[%clk 0:01:56.2]} 30. Kd2 {[%clk 0:01:37.3]}
30... Rf2+ {[%clk 0:01:56.1]} 31. Kc1 {[%clk 0:01:37.4]} 31... Kf8 {[%clk
0:01:36.2]} 32. h5 {[%clk 0:01:32.1]} 32... g5 {[%clk 0:01:33]} 33. Kb1 {[%clk
0:01:27.2]} 33... h6 {[%clk 0:01:32.9]} 34. Ka2 {[%clk 0:01:27.2]} 34... Rf4
{[%clk 0:01:24.4]} 35. Kb3 {[%clk 0:01:26.4]} 35... Ke7 {[%clk 0:01:24.8]} 36.
c4 {[%clk 0:01:26.5]} 36... a5 {[%clk 0:01:19]} 37. Kc3 {[%clk 0:01:21.1]} 37...
Rf3+ {[%clk 0:01:14.9]} 38. Kd4 {[%clk 0:01:20.3]} 38... Rf4+ {[%clk 0:01:15.3]}
39. Kc5 {[%clk 0:01:18.9]} 39... Kd7 {[%clk 0:01:13.9]} 40. Rd1+ {[%clk
0:01:17.6]} 40... Kc8 {[%clk 0:01:14]} 41. Re1 {[%clk 0:01:15.2]} 41... b6+
{[%clk 0:01:12.1]} 42. Kb5 {[%clk 0:01:15.4]} 42... Kb7 {[%clk 0:01:09.7]} 43.
Re7 {[%clk 0:01:15.3]} 43... Rxg4 {[%clk 0:01:06.9]} 44. Rxf7 {[%clk 0:01:15]}
44... Rh4 {[%clk 0:01:05.9]} 45. b4 {[%clk 0:01:09.5]} 45... axb4 {[%clk
0:01:05.3]} 46. axb4 {[%clk 0:01:10.1]} 46... Rxh5 {[%clk 0:01:04.8]} 47. c5
{[%clk 0:01:10.5]} 47... bxc5 {[%clk 0:01:00.5]} 48. bxc5 {[%clk 0:01:11.4]}
48... g4 {[%clk 0:01:00.3]} 49. Rg7 {[%clk 0:01:04.6]} 49... Rg5 {[%clk
0:00:58.7]} 50. Rh7 {[%clk 0:00:59.7]} 50... g3 {[%clk 0:00:55.2]} 0-1

[Event "Early-Titled-Tuesday-Blitz-September-12-2023"]
[Site "Chess.com"]
[Date "2023.09.12"]
[Round "7"]
[White "kacprekt"]
[Black "GaiozNigalidze"]
[Result "1/2-1/2"]
[WhiteElo "2473"]
[BlackElo "2720"]
[TimeControl "180+1"]
[EndTime "9:17:13 PDT"]
[Termination "Game drawn by repetition"]

1. e4 {[%clk 0:02:57.2]} 1... c5 {[%clk 0:02:59.6]} 2. c3 {[%clk 0:02:56.6]}
2... d5 {[%clk 0:02:55.3]} 3. exd5 {[%clk 0:02:53.3]} 3... Qxd5 {[%clk
0:02:56.2]} 4. Nf3 {[%clk 0:02:52.8]} 4... Nf6 {[%clk 0:02:53.5]} 5. Na3 {[%clk
0:02:52.5]} 5... e6 {[%clk 0:02:50.4]} 6. d4 {[%clk 0:02:44.5]} 6... Be7 {[%clk
0:02:37.8]} 7. Be2 {[%clk 0:02:29.2]} 7... cxd4 {[%clk 0:02:24.5]} 8. Nb5 {[%clk
0:02:28.8]} 8... Na6 {[%clk 0:02:08]} 9. Qxd4 {[%clk 0:02:22.3]} 9... O-O {[%clk
0:01:57.9]} 10. O-O {[%clk 0:02:19.1]} 10... Bd7 {[%clk 0:01:40.9]} 11. a4
{[%clk 0:02:12.3]} 11... Bc6 {[%clk 0:01:36.9]} 12. Bg5 {[%clk 0:02:02.8]} 12...
Rfd8 {[%clk 0:01:17.6]} 13. Qh4 {[%clk 0:01:46]} 13... h6 {[%clk 0:01:13.9]} 14.
Be3 {[%clk 0:01:38]} 14... g5 {[%clk 0:00:40.9]} 15. Qxh6 {[%clk 0:01:31.5]}
15... Ng4 {[%clk 0:00:34.2]} 16. Qh5 {[%clk 0:01:30.4]} 16... Nxe3 {[%clk
0:00:33.7]} 17. fxe3 {[%clk 0:01:31.3]} 17... Qe4 {[%clk 0:00:30]} 18. Kh1
{[%clk 0:01:10.2]} 18... g4 {[%clk 0:00:28.4]} 19. Nh4 {[%clk 0:01:05.4]} 19...
Bxh4 {[%clk 0:00:25.6]} 20. Qxf7+ {[%clk 0:01:03.7]} 20... Kh8 {[%clk
0:00:26.2]} 21. Qh5+ {[%clk 0:00:53.9]} 21... Qh7 {[%clk 0:00:25.8]} 22. Qe5+
{[%clk 0:00:48.2]} 22... Qg7 {[%clk 0:00:22.6]} 23. Qh5+ {[%clk 0:00:47.3]}
23... Qh7 {[%clk 0:00:23]} 24. Qe5+ {[%clk 0:00:44.9]} 24... Qg7 {[%clk
0:00:18.8]} 25. Qh5+ {[%clk 0:00:27.4]} 25... Qh7 {[%clk 0:00:10.5]} 1/2-1/2

[Event "Early-Titled-Tuesday-Blitz-September-12-2023"]
[Site "Chess.com"]
[Date "2023.09.12"]
[Round "7"]
[White "MathiasWomacka"]
[Black "HrvojeZagreb"]
[Result "1-0"]
[WhiteElo "2479"]
[BlackElo "2268"]
[TimeControl "180+1"]
[EndTime "9:17:14 PDT"]
[Termination "MathiasWomacka won by resignation"]

1. e4 {[%clk 0:03:00.9]} 1... c5 {[%clk 0:02:56.4]} 2. Nf3 {[%clk 0:03:00.3]}
2... a6 {[%clk 0:02:56.6]} 3. c4 {[%clk 0:02:59.4]} 3... Nc6 {[%clk 0:02:54]} 4.
d4 {[%clk 0:02:58.8]} 4... cxd4 {[%clk 0:02:54.9]} 5. Nxd4 {[%clk 0:02:58.9]}
5... d6 {[%clk 0:02:54.1]} 6. Nc3 {[%clk 0:02:57.5]} 6... Nf6 {[%clk 0:02:52.8]}
7. Be2 {[%clk 0:02:57.2]} 7... e6 {[%clk 0:02:52.2]} 8. Be3 {[%clk 0:02:56.8]}
8... Be7 {[%clk 0:02:52.3]} 9. O-O {[%clk 0:02:57.3]} 9... Qc7 {[%clk
0:02:51.2]} 10. f4 {[%clk 0:02:56]} 10... O-O {[%clk 0:02:49.1]} 11. Rc1 {[%clk
0:02:55.6]} 11... b6 {[%clk 0:02:38.4]} 12. Nd5 {[%clk 0:02:47.8]} 12... exd5
{[%clk 0:02:20.1]} 13. cxd5 {[%clk 0:02:48.7]} 13... Nxd4 {[%clk 0:02:17.8]} 14.
Rxc7 {[%clk 0:02:45.6]} 14... Nxe2+ {[%clk 0:02:18]} 15. Qxe2 {[%clk 0:02:44.8]}
15... Bd8 {[%clk 0:02:18.6]} 16. Rc6 {[%clk 0:02:12.8]} 16... Nxe4 {[%clk
0:01:55.3]} 17. Bxb6 {[%clk 0:02:11.3]} 17... Bxb6+ {[%clk 0:01:55.8]} 18. Rxb6
{[%clk 0:02:11.1]} 18... f5 {[%clk 0:01:54.6]} 19. Rc1 {[%clk 0:02:01.1]} 19...
Rf7 {[%clk 0:01:36.6]} 20. Qe3 {[%clk 0:01:54.2]} 20... Bd7 {[%clk 0:01:10.5]}
21. Rc7 {[%clk 0:01:46.4]} 21... Bb5 {[%clk 0:01:10.1]} 22. Rxf7 {[%clk
0:01:43.2]} 22... Kxf7 {[%clk 0:01:11]} 23. Rb7+ {[%clk 0:01:39.8]} 23... Kg8
{[%clk 0:01:09.9]} 24. Qd4 {[%clk 0:01:36.4]} 24... Nf6 {[%clk 0:01:09.7]} 25.
a4 {[%clk 0:01:33.8]} 25... Bd7 {[%clk 0:00:57.5]} 26. Qb6 {[%clk 0:01:27.1]}
26... Rf8 {[%clk 0:00:25.9]} 27. Qxd6 {[%clk 0:01:22.1]} 27... Bxa4 {[%clk
0:00:25.7]} 28. Qxa6 {[%clk 0:01:09.6]} 28... Be8 {[%clk 0:00:16.2]} 29. d6
{[%clk 0:01:03.2]} 29... Bd7 {[%clk 0:00:09.9]} 30. Qa7 {[%clk 0:00:59.3]} 30...
Bc6 {[%clk 0:00:07.2]} 31. Rxg7+ {[%clk 0:00:55.7]} 31... Kh8 {[%clk 0:00:07.5]}
32. Rf7 {[%clk 0:00:53.6]} 32... Rg8 {[%clk 0:00:07.8]} 33. Rxf6 {[%clk
0:00:52.6]} 33... Rxg2+ {[%clk 0:00:07.7]} 34. Kf1 {[%clk 0:00:53]} 1-0

[Event "Early-Titled-Tuesday-Blitz-September-12-2023"]
[Site "Chess.com"]
[Date "2023.09.12"]
[Round "7"]
[White "Gogolev_Artemy"]
[Black "Gyulamiryan-koryun"]
[Result "1-0"]
[WhiteElo "2396"]
[BlackElo "2027"]
[TimeControl "180+1"]
[EndTime "9:17:15 PDT"]
[Termination "Gogolev_Artemy won on time"]

1. c4 {[%clk 0:02:59]} 1... Nf6 {[%clk 0:02:53.5]} 2. g3 {[%clk 0:02:57.6]} 2...
g6 {[%clk 0:02:52.8]} 3. d4 {[%clk 0:02:57.8]} 3... c5 {[%clk 0:02:48.8]} 4. Nf3
{[%clk 0:02:55.1]} 4... Bg7 {[%clk 0:02:47.1]} 5. Bg2 {[%clk 0:02:55.1]} 5...
Nc6 {[%clk 0:02:46.3]} 6. d5 {[%clk 0:02:53.6]} 6... Na5 {[%clk 0:02:35.6]} 7.
Qd3 {[%clk 0:02:42.4]} 7... d6 {[%clk 0:02:34.4]} 8. Nc3 {[%clk 0:02:40.5]} 8...
Bd7 {[%clk 0:02:27.4]} 9. O-O {[%clk 0:02:39.8]} 9... a6 {[%clk 0:02:25.9]} 10.
a4 {[%clk 0:02:38.3]} 10... b6 {[%clk 0:02:20.6]} 11. Bf4 {[%clk 0:02:31.1]}
11... Nh5 {[%clk 0:02:13]} 12. Bd2 {[%clk 0:02:29.9]} 12... Nb3 {[%clk
0:02:12.3]} 13. Rab1 {[%clk 0:02:21.6]} 13... Nxd2 {[%clk 0:01:57.6]} 14. Qxd2
{[%clk 0:02:21.9]} 14... O-O {[%clk 0:01:52.3]} 15. e4 {[%clk 0:02:16.6]} 15...
Bxc3 {[%clk 0:01:38.7]} 16. bxc3 {[%clk 0:02:04.1]} 16... Bxa4 {[%clk 0:01:38]}
17. Qh6 {[%clk 0:01:55.2]} 17... f6 {[%clk 0:01:29]} 18. Nh4 {[%clk 0:01:30.4]}
18... Be8 {[%clk 0:01:03.3]} 19. f4 {[%clk 0:01:28]} 19... Rf7 {[%clk
0:00:55.1]} 20. e5 {[%clk 0:01:03.3]} 20... Rg7 {[%clk 0:00:53.7]} 21. g4 {[%clk
0:00:55.5]} 21... g5 {[%clk 0:00:47.6]} 22. Nf5 {[%clk 0:00:48.9]} 22... Rg6
{[%clk 0:00:32.1]} 23. Qxh5 {[%clk 0:00:48.4]} 23... gxf4 {[%clk 0:00:31.7]} 24.
e6 {[%clk 0:00:44.9]} 24... b5 {[%clk 0:00:14.2]} 25. Rf3 {[%clk 0:00:44.6]}
25... Rg5 {[%clk 0:00:04.9]} 26. Qh6 {[%clk 0:00:44.6]} 26... Rxf5 {[%clk
0:00:02.5]} 27. gxf5 {[%clk 0:00:44]} 1-0

[Event "Early-Titled-Tuesday-Blitz-September-12-2023"]
[Site "Chess.com"]
[Date "2023.09.12"]
[Round "7"]
[White "Frolyanov_D"]
[Black "Hikaru"]
[Result "0-1"]
[WhiteElo "2668"]
[BlackElo "3234"]
[TimeControl "180+1"]
[EndTime "9:17:16 PDT"]
[Termination "Hikaru won by resignation"]

1. d4 {[%clk 0:03:00.9]} 1... a6 {[%clk 0:02:58.9]} 2. c4 {[%clk 0:02:57.4]}
2... e6 {[%clk 0:02:50.4]} 3. Nc3 {[%clk 0:02:56.9]} 3... c5 {[%clk 0:02:47.4]}
4. d5 {[%clk 0:02:51]} 4... exd5 {[%clk 0:02:47.7]} 5. Nxd5 {[%clk 0:02:50.8]}
5... d6 {[%clk 0:02:46.1]} 6. Nf3 {[%clk 0:02:47.7]} 6... Nc6 {[%clk 0:02:45.3]}
7. g3 {[%clk 0:02:46.1]} 7... Nf6 {[%clk 0:02:41.9]} 8. Bg5 {[%clk 0:02:43.8]}
8... Be7 {[%clk 0:02:41.5]} 9. Nxe7 {[%clk 0:02:42.6]} 9... Qxe7 {[%clk
0:02:39.7]} 10. Bg2 {[%clk 0:02:42.3]} 10... O-O {[%clk 0:02:39.2]} 11. O-O
{[%clk 0:02:42.2]} 11... h6 {[%clk 0:02:38.5]} 12. Bf4 {[%clk 0:02:40.9]} 12...
Rd8 {[%clk 0:02:38.1]} 13. Qd2 {[%clk 0:02:36.6]} 13... d5 {[%clk 0:02:37.7]}
14. cxd5 {[%clk 0:01:57]} 14... Nxd5 {[%clk 0:02:36.8]} 15. Rad1 {[%clk
0:01:41.3]} 15... Bg4 {[%clk 0:02:21.6]} 16. h3 {[%clk 0:01:35.6]} 16... Bxf3
{[%clk 0:02:17.8]} 17. Bxf3 {[%clk 0:01:33.7]} 17... Nd4 {[%clk 0:02:17.8]} 18.
Kg2 {[%clk 0:00:46.4]} 18... Nxf3 {[%clk 0:02:02.2]} 19. exf3 {[%clk 0:00:47.3]}
19... Qf6 {[%clk 0:01:58.1]} 20. Qc1 {[%clk 0:00:22.9]} 20... Qc6 {[%clk
0:01:54.1]} 21. Be3 {[%clk 0:00:22]} 21... b6 {[%clk 0:01:48]} 22. Rfe1 {[%clk
0:00:22.2]} 22... Rd7 {[%clk 0:01:48.2]} 23. a3 {[%clk 0:00:22.2]} 23... Rad8
{[%clk 0:01:48.2]} 24. Qc2 {[%clk 0:00:20.2]} 24... c4 {[%clk 0:01:45.1]} 25.
Bc1 {[%clk 0:00:20.3]} 25... b5 {[%clk 0:01:45]} 26. Rd4 {[%clk 0:00:17.1]}
26... Rd6 {[%clk 0:01:33.8]} 27. Rde4 {[%clk 0:00:17.2]} 27... Nf6 {[%clk
0:01:30.5]} 28. Re7 {[%clk 0:00:17.3]} 28... Rd3 {[%clk 0:01:30.5]} 29. Qe2
{[%clk 0:00:16.7]} 29... a5 {[%clk 0:01:27.4]} 30. Bf4 {[%clk 0:00:16.4]} 30...
Nd5 {[%clk 0:01:25.3]} 31. Re4 {[%clk 0:00:15.2]} 31... c3 {[%clk 0:01:15.4]}
32. Be5 {[%clk 0:00:13.5]} 32... Rd2 {[%clk 0:01:09.4]} 33. Qf1 {[%clk
0:00:09.3]} 33... Rxb2 {[%clk 0:01:07.4]} 34. Rg4 {[%clk 0:00:09.2]} 34... g6
{[%clk 0:01:07.6]} 35. Qd3 {[%clk 0:00:08.6]} 35... Nf4+ {[%clk 0:01:03.6]} 36.
Rxf4 {[%clk 0:00:03.9]} 36... Rxd3 {[%clk 0:01:04.5]} 37. Bf6 {[%clk 0:00:02.4]}
37... Rdd2 {[%clk 0:00:59.5]} 0-1